lending/lending_fUSD_20240219
["ID","MTS","AMOUNT","RATE_DAILY","PERIOD"]
[314464473,1708368658674,-500.0,0.00046849,30]
[314464474,1708368658683,-991.14,0.00046849,30]
[314464475,1708368658693,-500.0,0.00046849,30]
[314464476,1708368658702,-851.7,0.00046849,30]
[314464477,1708368658711,-500.0,0.00046849,30]
[314464478,1708368658721,-500.0,0.00046849,30]
[314464479,1708368658730,-853.03,0.00046849,30]
[314464480,1708368658741,-500.0,0.00046849,30]
[314464481,1708368658751,-500.0,0.00046849,2]
[314464482,1708368658760,-500.0,0.00046849,30]
[314464483,1708368658769,-725.38,0.00046849,30]
[314464484,1708368658780,-500.0,0.00046849,30]
[314464485,1708368658789,-500.0,0.00046849,30]
[314464486,1708368658798,-919.88,0.00046849,30]
[314464487,1708368658808,-500.0,0.00046849,30]
[314464488,1708368658818,-500.0,0.00046849,30]
[314464489,1708368658827,-500.0,0.00046849,30]
[314464490,1708368658836,-500.0,0.00046849,30]
[314464491,1708368658845,-500.0,0.00046849,30]
[314464492,1708368658854,-500.0,0.00046849,30]
[314464493,1708368658863,-704.79,0.00046849,30]
[314464494,1708368658873,-413.95199444,0.00046849,30]
[314464495,1708368658882,-564.61882091,0.00046849,30]
[314464496,1708368658892,-500.0,0.00046849,30]
[314464497,1708368658901,-500.0,0.00046849,30]
[314464498,1708368658911,-500.0,0.00046849,30]
[314464499,1708368658920,-500.0,0.00046849,30]
[314464500,1708368658930,-782.95,0.00046849,30]
[314464501,1708368658939,-500.0,0.00046849,30]
[314464502,1708368658949,-500.0,0.00046849,30]
[314464503,1708368658958,-808.22,0.00046849,30]
[314464504,1708368658968,-500.0,0.00046849,30]
[314464505,1708368658977,-635.71,0.00046849,30]
[314464506,1708368658987,-500.0,0.00046849,30]
[314464507,1708368658999,-500.0,0.00046849,30]
[314464508,1708368659008,-982.5,0.00046849,30]
[314464509,1708368659018,-500.0,0.00046849,30]
[314464510,1708368659029,-500.0,0.00046849,30]
[314464511,1708368659039,-500.0,0.00046849,30]
[314464512,1708368659053,-500.0,0.00046849,30]
[314464513,1708368659064,-500.0,0.00046849,30]
[314464514,1708368659073,-638.02,0.00046849,30]
[314464515,1708368659083,-882.05,0.00046849,30]
[314464516,1708368659092,-500.0,0.00046849,30]
[314464517,1708368659102,-559.02,0.00046849,30]
[314464518,1708368659112,-500.0,0.00046849,30]
[314464519,1708368659121,-797.72,0.00046849,30]
[314464520,1708368659131,-857.59,0.00046849,30]
[314464521,1708368659140,-500.0,0.00046849,30]
[314464522,1708368659149,-500.0,0.00046849,30]
[314464523,1708368659159,-500.0,0.00046849,30]
[314464524,1708368659168,-500.0,0.00046849,30]
[314464525,1708368659177,-500.0,0.00046849,30]
[314464526,1708368659187,-500.0,0.00046849,30]
[314464527,1708368659196,-500.0,0.00046849,30]
[314464528,1708368659205,-500.0,0.00046849,30]
[314464529,1708368659214,-839.61,0.00046849,30]
[314464530,1708368659224,-500.0,0.00046849,30]
[314464531,1708368659234,-500.0,0.00046849,30]
[314464532,1708368659243,-500.0,0.00046849,30]
[314464533,1708368659252,-500.0,0.00046849,30]
[314464534,1708368659261,-500.0,0.00046849,30]
[314464535,1708368659271,-541.29,0.00046849,30]
[314464536,1708368659280,-821.18,0.00046849,30]
[314464537,1708368659290,-500.0,0.00046849,30]
[314464538,1708368659299,-500.0,0.00046849,30]
[314464539,1708368659308,-908.51,0.00046849,30]
[314464540,1708368659318,-506.77,0.00046849,30]
[314464541,1708368659328,-500.0,0.00046849,30]
[314464542,1708368659337,-500.0,0.00046849,30]
[314464543,1708368659347,-500.0,0.00046849,30]
[314464544,1708368659356,-1202.54,0.00046849,30]
[314464545,1708368659365,-832.18,0.00046849,30]
[314464546,1708368659375,-500.0,0.00046849,30]
[314464547,1708368659392,-749.86,0.00046849,30]
[314464548,1708368659410,-500.0,0.00046849,30]
[314464549,1708368659426,-692.69,0.00046849,30]
[314464550,1708368659442,-500.0,0.00046849,30]
[314464551,1708368659459,-500.0,0.00046849,30]
[314464552,1708368659476,-500.0,0.00046849,30]
[314464553,1708368659493,-583.47,0.00046849,30]
[314464554,1708368659510,-963.02,0.00046849,30]
[314464555,1708368659527,-500.0,0.00046849,30]
[314464556,1708368659545,-500.0,0.00046849,30]
[314464557,1708368659561,-1000.0,0.00046849,7]
[314464558,1708368659578,-500.0,0.00046849,30]
[314464559,1708368659597,-500.0,0.00046849,30]
[314464560,1708368659613,-500.0,0.00046849,30]
[314464561,1708368659629,-500.0,0.00046849,30]
[314464562,1708368659647,-500.0,0.00046849,30]
[314464563,1708368659665,-500.0,0.00046849,30]
[314464564,1708368659684,-500.0,0.00046849,30]
[314464565,1708368659700,-604.89,0.00046849,30]
[314464566,1708368659713,-500.0,0.00046849,7]
[314464567,1708368659731,-762.37,0.00046849,30]
[314464568,1708368659751,-774.78,0.00046849,30]
[314464569,1708368659766,-500.0,0.00046849,30]
[314464570,1708368659779,-500.0,0.00046849,30]
[314464571,1708368659794,-500.0,0.00046849,30]
[314464572,1708368659809,-569.35,0.00046849,30]
[314464573,1708368659824,-500.0,0.00046849,30]
[314464574,1708368659844,-503.47854946,0.00046849,30]
[314464575,1708368659857,-500.0,0.00046849,30]
[314464576,1708368659871,-500.0,0.00046849,30]
[314464577,1708368659886,-873.98,0.00046849,30]
[314464578,1708368659901,-500.0,0.00046849,30]
[314464579,1708368659914,-500.0,0.00046849,30]
[314464580,1708368659927,-500.0,0.00046849,30]
[314464581,1708368659941,-718.47,0.00046849,30]
[314464582,1708368659955,-500.0,0.00046849,30]
[314464583,1708368659968,-705.46,0.00046849,30]
[314464584,1708368659981,-500.0,0.00046849,30]
[314464585,1708368659998,-570.87,0.00046849,30]
[314464586,1708368660012,-500.0,0.00046849,30]
[314464587,1708368660028,-500.0,0.00046849,30]
[314464588,1708368660042,-500.0,0.00046849,30]
[314464589,1708368660055,-776.31,0.00046849,30]
[314464590,1708368660068,-607.54,0.00046849,30]
[314464591,1708368660082,-500.0,0.00046849,2]
[314464592,1708368660096,-500.0,0.00046849,30]
[314464593,1708368660111,-500.0,0.00046849,30]
[314464594,1708368660124,-232.34874262,0.00046849,30]
[314464595,1708368660137,-700.1,0.00046849,30]
[314464596,1708368660150,-500.0,0.00046849,30]
[314464597,1708368660164,-507.93,0.00046849,30]
[314464598,1708368660178,-500.0,0.00046849,30]
[314464599,1708368660192,-500.0,0.00046849,30]
[314464600,1708368660207,-500.0,0.00046849,30]
[314464601,1708368660221,-844.56,0.00046849,30]
[314464602,1708368660235,-500.0,0.00046849,30]
[314464603,1708368660251,-500.0,0.00046849,30]
[314464604,1708368660265,-500.0,0.00046849,30]
[314464605,1708368660279,-500.0,0.00046849,30]
[314464606,1708368660294,-500.0,0.00046849,30]
[314464607,1708368660309,-922.75,0.00046849,30]
[314464608,1708368660323,-700.59,0.00046849,30]
[314464609,1708368660337,-529.56258022,0.00046849,30]
[314464610,1708368660350,-500.0,0.00046849,30]
[314464611,1708368660363,-500.0,0.00046849,30]
[314464612,1708368660377,-500.0,0.00046849,30]
[314464613,1708368660390,-565.13,0.00046849,30]
[314464614,1708368660404,-852.32,0.00046849,30]
[314464615,1708368660419,-500.0,0.00046849,30]
[314464616,1708368660432,-500.0,0.00046849,30]
[314464617,1708368660445,-500.0,0.00046849,30]
[314464618,1708368660458,-1633.83,0.00046849,30]
[314464619,1708368660471,-500.0,0.00046849,30]
[314464620,1708368660484,-624.86,0.00046849,30]
[314464621,1708368660500,-609.93406505,0.00046849,30]
[314464622,1708368660513,-500.0,0.00046849,30]
[314464623,1708368660525,-500.0,0.00046849,30]
[314464624,1708368660537,-500.0,0.00046849,30]
[314464625,1708368660550,-500.0,0.00046849,30]
[314464626,1708368660562,-968.85,0.00046849,30]
[314464627,1708368660574,-681.41,0.00046849,30]
[314464628,1708368660587,-304.29951418,0.00046849,30]
[314464629,1708368660599,-500.0,0.00046849,30]
[314464630,1708368660611,-2749.08,0.00046849,30]
[314464631,1708368660623,-500.0,0.00046849,30]
[314464632,1708368660636,-500.0,0.00046849,30]
[314464633,1708368660648,-500.0,0.00046849,30]
[314464634,1708368660661,-500.0,0.00046849,30]
[314464635,1708368660673,-500.0,0.00046849,30]
[314464636,1708368660686,-500.0,0.00046849,30]
[314464637,1708368660698,-500.0,0.00046849,30]
[314464638,1708368660711,-514.57,0.00046849,30]
[314464639,1708368660723,-1193.23,0.00046849,30]
[314464640,1708368660736,-500.0,0.00046849,30]
[314464641,1708368660750,-500.0,0.00046849,30]
[314464642,1708368660762,-500.0,0.00046849,30]
[314464643,1708368660774,-500.0,0.00046849,30]
[314464644,1708368660787,-500.0,0.00046849,30]
[314464645,1708368660799,-788.3,0.00046849,30]
[314464646,1708368660811,-500.0,0.00046849,30]
[314464647,1708368660823,-500.0,0.00046849,30]
[314464648,1708368660835,-500.0,0.00046849,30]
[314464649,1708368660848,-759.41,0.00046849,30]
[314464650,1708368660859,-1897.02,0.00046849,30]
[314464651,1708368660872,-959.63,0.00046849,30]
[314464652,1708368660883,-774.5,0.00046849,30]
[314464653,1708368660895,-728.15,0.00046849,30]
[314464654,1708368660907,-500.0,0.00046849,30]
[314464655,1708368660919,-695.7,0.00046849,30]
[314464656,1708368660932,-500.0,0.00046849,30]
[314464657,1708368660945,-591.83,0.00046849,30]
[314464658,1708368660957,-1002.89,0.00046849,30]
[314464659,1708368660969,-2303.4,0.00046849,30]
[314464660,1708368660981,-500.0,0.00046849,30]
[314464661,1708368660995,-616.96,0.00046849,30]
[314464662,1708368661008,-500.0,0.00046849,30]
[314464663,1708368661020,-500.0,0.00046849,30]
[314464664,1708368661036,-667.62,0.00046849,30]
[314464665,1708368661049,-656.24,0.00046849,30]
[314464666,1708368661063,-500.0,0.00046849,30]
[314464667,1708368661073,-1370.62,0.00046849,30]
[314464668,1708368661082,-1953.3,0.00046849,30]
[314464669,1708368661091,-500.0,0.00046849,30]
[314464670,1708368661100,-500.0,0.00046849,30]
[314464671,1708368661110,-993.04,0.00046849,30]
[314464672,1708368661119,-500.0,0.00046849,30]
[314464673,1708368661127,-500.0,0.00046849,30]
[314464674,1708368661136,-500.0,0.00046849,30]
[314464675,1708368661145,-2363.16,0.00046849,30]
[314464676,1708368661154,-731.75,0.00046849,30]
[314464677,1708368661163,-511.68,0.00046849,30]
[314464678,1708368661172,-838.61,0.00046849,30]
[314464679,1708368661180,-500.0,0.00046849,30]
[314464680,1708368661190,-500.0,0.00046849,30]
[314464681,1708368661198,-518.93407207,0.00046849,30]
[314464682,1708368661207,-574.99,0.00046849,30]
[314464683,1708368661216,-878.47,0.00046849,30]
[314464684,1708368661225,-500.0,0.00046849,30]
[314464685,1708368661234,-500.0,0.00046849,2]
[314464686,1708368661246,-856.47,0.00046849,30]
[314464687,1708368661255,-500.0,0.00046849,30]
[314464688,1708368661264,-500.0,0.00046849,30]
[314464689,1708368661273,-500.0,0.00046849,30]
[314464690,1708368661282,-500.0,0.00046849,30]
[314464691,1708368661291,-500.0,0.00046849,30]
[314464692,1708368661300,-500.0,0.00046849,30]
[314464693,1708368661309,-500.0,0.00046849,30]
[314464694,1708368661318,-500.0,0.00046849,30]
[314464695,1708368661327,-500.0,0.00046849,30]
[314464696,1708368661337,-1051.99,0.00046849,30]
[314464697,1708368661345,-500.0,0.00046849,30]
[314464698,1708368661354,-500.0,0.00046849,30]
[314464699,1708368661363,-653.29,0.00046849,30]
[314464700,1708368661372,-500.0,0.00046849,30]
[314464701,1708368661381,-865.45,0.00046849,30]
[314464702,1708368661390,-500.0,0.00046849,30]
[314464703,1708368661399,-500.0,0.00046849,30]
[314464704,1708368661409,-579.34,0.00046849,30]
[314464705,1708368661418,-500.0,0.00046849,30]
[314464706,1708368661427,-500.0,0.00046849,30]
[314464707,1708368661436,-500.0,0.00046849,30]
[314464708,1708368661446,-500.0,0.00046849,30]
[314464709,1708368661455,-507.09543076,0.00046849,30]
[314464710,1708368661465,-1080.33,0.00046849,30]
[314464711,1708368661474,-459.45685237,0.00046849,30]
[314464712,1708368661484,-500.0,0.00046849,30]
[314464713,1708368661497,-886.97,0.00046849,30]
[314464714,1708368661506,-500.0,0.00046849,30]
[314464715,1708368661516,-500.0,0.00046849,30]
[314464716,1708368662013,-500.0,0.00046849,30]
[314464717,1708368662039,-500.0,0.00046849,30]
[314464718,1708368662058,-506.91,0.00046849,30]
[314464719,1708368662071,-932.3,0.00046849,30]
[314464720,1708368662081,-1000.0,0.00046849,7]
[314464721,1708368662090,-872.65,0.00046849,30]
[314464722,1708368662099,-500.0,0.00046849,30]
[314464723,1708368662109,-500.0,0.00046849,30]
[314464724,1708368662118,-500.0,0.00046849,30]
[314464725,1708368662127,-500.0,0.00046849,30]
[314464726,1708368662136,-608.78,0.00046849,2]
[314464727,1708368662145,-552.08,0.00046849,30]
[314464728,1708368662154,-500.0,0.00046849,30]
[314464729,1708368662163,-500.0,0.00046849,30]
[314464730,1708368662173,-500.0,0.00046849,30]
[314464731,1708368662182,-500.0,0.00046849,30]
[314464732,1708368662191,-500.0,0.00046849,30]
[314464733,1708368662202,-975.9,0.00046849,30]
[314464734,1708368662211,-500.0,0.00046849,30]
[314464735,1708368662220,-500.0,0.00046849,30]
[314464736,1708368662229,-500.0,0.00046849,30]
[314464737,1708368662239,-692.97,0.00046849,30]
[314464738,1708368662249,-1172.94,0.00046849,30]
[314464739,1708368662259,-500.0,0.00046849,30]
[314464740,1708368662269,-1027.4,0.00046849,30]
[314464741,1708368662279,-634.19,0.00046849,30]
[314464742,1708368662288,-500.0,0.00046849,30]
[314464743,1708368662298,-953.8,0.00046849,30]
[314464744,1708368662307,-237.46381582,0.00046849,30]
[314464745,1708368662316,-500.0,0.00046849,30]
[314464746,1708368662325,-500.0,0.00046849,30]
[314464747,1708368662334,-500.0,0.00046849,30]
[314464748,1708368662343,-500.0,0.00046849,30]
[314464749,1708368662353,-1332.29,0.00046849,30]
[314464750,1708368662362,-500.0,0.00046849,30]
[314464751,1708368662371,-500.0,0.00046849,30]
[314464752,1708368662381,-1821.58,0.00046849,30]
[314464753,1708368662390,-500.0,0.00046849,30]
[314464754,1708368662399,-500.0,0.00046849,30]
[314464755,1708368662409,-834.88,0.00046849,30]
[314464756,1708368662419,-595.56,0.00046849,30]
[314464757,1708368662429,-721.89,0.00046849,30]
[314464758,1708368662438,-500.0,0.00046849,30]
[314464759,1708368662447,-508.87703033,0.00046849,30]
[314464760,1708368662457,-1691.82,0.00046849,30]
[314464761,1708368662468,-500.0,0.00046849,30]
[314464762,1708368662478,-500.0,0.00046849,30]
[314464763,1708368662490,-776.62,0.00046849,30]
[314464764,1708368662500,-500.0,0.00046849,30]
[314464765,1708368662510,-2325.88,0.00046849,30]
[314464766,1708368662519,-500.0,0.00046849,30]
[314464767,1708368662528,-500.0,0.00046849,30]
[314464768,1708368662538,-542.42,0.00046849,30]
[314464769,1708368662547,-500.0,0.00046849,30]
[314464770,1708368662556,-380.20385317,0.00046849,30]
[314464771,1708368662565,-500.0,0.00046849,30]
[314464772,1708368662575,-500.0,0.00046849,30]
[314464773,1708368662584,-727.95,0.00046849,30]
[314464774,1708368662593,-2218.71,0.00046849,30]
[314464775,1708368662603,-767.32,0.00046849,30]
[314464776,1708368662612,-500.0,0.00046849,30]
[314464777,1708368662621,-500.0,0.00046849,30]
[314464778,1708368662630,-500.0,0.00046849,30]
[314464779,1708368662638,-1241.04,0.00046849,30]
[314464780,1708368662647,-500.0,0.00046849,30]
[314464781,1708368662656,-500.0,0.00046849,30]
[314464782,1708368662666,-879.92,0.00046849,30]
[314464783,1708368662675,-500.0,0.00046849,30]
[314464784,1708368662684,-200.92854228,0.00046849,30]
[314464785,1708368662694,-500.0,0.00046849,30]
[314464786,1708368662703,-500.0,0.00046849,30]
[314464787,1708368662712,-500.0,0.00046849,30]
[314464788,1708368662722,-809.49,0.00046849,30]
[314464789,1708368662732,-1201.08,0.00046849,30]
[314464790,1708368662744,-500.0,0.00046849,30]
[314464791,1708368662754,-500.0,0.00046849,30]
[314464792,1708368662763,-1945.84,0.00046849,30]
[314464793,1708368662772,-500.0,0.00046849,30]
[314464794,1708368662782,-500.0,0.00046849,30]
[314464795,1708368662792,-500.0,0.00046849,30]
[314464796,1708368662801,-500.0,0.00046849,30]
[314464797,1708368662810,-500.0,0.00046849,30]
[314464798,1708368662820,-734.92,0.00046849,30]
[314464799,1708368662829,-8336.83,0.00046849,30]
[314464800,1708368662838,-2407.85,0.00046849,30]
[314464801,1708368662848,-500.0,0.00046849,30]
[314464802,1708368662858,-503.0,0.00046849,30]
[314464803,1708368662867,-500.0,0.00046849,30]
[314464804,1708368662876,-500.0,0.00046849,30]
[314464805,1708368662885,-500.0,0.00046849,30]
[314464806,1708368662895,-500.0,0.00046849,30]
[314464807,1708368662904,-500.0,0.00046849,30]
[314464808,1708368662915,-500.0,0.00046849,30]
[314464809,1708368662924,-500.0,0.00046849,30]
[314464810,1708368662934,-782.99,0.00046849,30]
[314464811,1708368662943,-1574.66,0.00046849,30]
[314464812,1708368662953,-2196.04,0.00046849,30]
[314464813,1708368662963,-374.72,0.00046849,30]
[314464814,1708368662972,-500.0,0.00046849,30]
[314464815,1708368662982,-519.29649271,0.00046849,30]
[314464816,1708368662994,-625.53011924,0.00046849,30]
[314464817,1708368663004,-904.27,0.00046849,30]
[314464818,1708368663013,-500.0,0.00046849,30]
[314464819,1708368663022,-500.0,0.00046849,30]
[314464820,1708368663034,-500.0,0.00046849,30]
[314464821,1708368663043,-1250.14,0.00046849,30]
[314464822,1708368663053,-500.0,0.00046849,30]
[314464823,1708368663062,-579.16,0.00046849,30]
[314464824,1708368663071,-716.18,0.00046849,30]
[314464825,1708368663080,-5136.62,0.00046849,30]
[314464826,1708368663089,-1860.24,0.00046849,30]
[314464827,1708368663098,-2296.53,0.00046849,30]
[314464828,1708368663109,-500.0,0.00046849,30]
[314464829,1708368663119,-500.0,0.00046849,30]
[314464830,1708368663129,-575.6,0.00046849,30]
[314464831,1708368663138,-500.0,0.00046849,30]
[314464832,1708368663147,-500.0,0.00046849,30]
[314464833,1708368663157,-500.0,0.00046849,30]
[314464834,1708368663166,-529.32833486,0.00046849,30]
[314464835,1708368663175,-500.0,0.00046849,30]
[314464836,1708368663184,-500.0,0.00046849,30]
[314464837,1708368663193,-500.0,0.00046849,30]
[314464838,1708368663202,-1193.79,0.00046849,30]
[314464839,1708368663211,-500.0,0.00046849,30]
[314464840,1708368663221,-2582.22,0.00046849,30]
[314464841,1708368663231,-500.0,0.00046849,30]
[314464842,1708368663242,-1663.17,0.00046849,30]
[314464843,1708368663251,-535.27726888,0.00046849,30]
[314464844,1708368663261,-500.0,0.00046849,30]
[314464845,1708368663271,-500.0,0.00046849,30]
[314464846,1708368663280,-500.0,0.00046849,30]
[314464847,1708368663288,-2699.75,0.00046849,30]
[314464848,1708368663298,-500.0,0.00046849,30]
[314464849,1708368663307,-500.0,0.00046849,30]
[314464850,1708368663316,-500.0,0.00046849,30]
[314464851,1708368663325,-500.0,0.00046849,30]
[314464852,1708368663334,-500.0,0.00046849,30]
[314464853,1708368663343,-1233.49,0.00046849,30]
[314464854,1708368663353,-2570.88,0.00046849,30]
[314464855,1708368663362,-1807.88,0.00046849,30]
[314464856,1708368663371,-500.0,0.00046849,30]
[314464857,1708368663380,-642.64,0.00046849,30]
[314464858,1708368663389,-500.0,0.00046849,30]
[314464859,1708368663398,-582.8111722,0.00046849,30]
[314464860,1708368663407,-2069.93,0.00046849,30]
[314464861,1708368663417,-500.0,0.00046849,30]
[314464862,1708368663426,-500.0,0.00046849,30]
[314464863,1708368663436,-1233.0,0.00046849,30]
[314464864,1708368663445,-500.0,0.00046849,30]
[314464865,1708368663455,-855.12,0.00046849,30]
[314464866,1708368663465,-597.55,0.00046849,30]
[314464867,1708368663475,-500.0,0.00046849,30]
[314464868,1708368663484,-500.0,0.00046849,30]
[314464869,1708368663496,-602.01871256,0.00046849,30]
[314464870,1708368663505,-1715.92,0.00046849,30]
[314464871,1708368663515,-500.0,0.00046849,30]
[314464872,1708368663524,-926.75,0.00046849,30]
[314464873,1708368663534,-500.0,0.00046849,30]
[314464874,1708368663543,-178.50260941,0.00046849,30]
[314464875,1708368663553,-500.0,0.00046849,30]
[314464876,1708368663562,-2378.68,0.00046849,30]
[314464877,1708368663571,-3458.75,0.00046849,30]
[314464878,1708368663581,-500.0,0.00046849,30]
[314464879,1708368663590,-734.17,0.00046849,30]
[314464880,1708368663600,-500.0,0.00046849,30]
[314464881,1708368663610,-1054.76,0.00046849,30]
[314464882,1708368663620,-919.86,0.00046849,30]
[314464883,1708368663631,-2773.68,0.00046849,30]
[314464884,1708368663641,-1132.55,0.00046849,30]
[314464885,1708368663651,-500.0,0.00046849,30]
[314464886,1708368663661,-500.0,0.00046849,30]
[314464887,1708368663670,-2204.57,0.00046849,30]
[314464888,1708368663681,-500.0,0.00046849,30]
[314464889,1708368663690,-1178.43,0.00046849,30]
[314464890,1708368663700,-500.0,0.00046849,30]
[314464891,1708368663710,-500.0,0.00046849,30]
[314464892,1708368663720,-2482.83,0.00046849,30]
[314464893,1708368663730,-3035.21,0.00046849,30]
[314464894,1708368663743,-959.71,0.00046849,30]
[314464895,1708368663753,-2643.7,0.00046849,30]
[314464896,1708368663764,-500.0,0.00046849,30]
[314464897,1708368663774,-500.0,0.00046849,30]
[314464898,1708368663785,-2146.58,0.00046849,30]
[314464899,1708368663795,-588.15,0.00046849,30]
[314464900,1708368663807,-564.0831054,0.00046849,30]
[314464901,1708368663816,-1142.71,0.00046849,30]
[314464902,1708368663827,-3544.33,0.00046849,30]
[314464903,1708368663837,-2201.17,0.00046849,30]
[314464904,1708368663847,-500.0,0.00046849,30]
[314464905,1708368663857,-500.0,0.00046849,30]
[314464906,1708368663867,-500.0,0.00046849,30]
[314464907,1708368663876,-1017.55,0.00046849,30]
[314464908,1708368663886,-500.0,0.00046849,30]
[314464909,1708368663895,-500.0,0.00046849,30]
[314464910,1708368663905,-500.0,0.00046849,30]
[314464911,1708368663914,-2111.83,0.00046849,30]
[314464912,1708368663924,-500.0,0.00046849,30]
[314464913,1708368663934,-500.0,0.00046849,30]
[314464914,1708368663944,-3085.25,0.00046849,30]
[314464915,1708368663954,-500.0,0.00046849,30]
[314464916,1708368663963,-500.0,0.00046849,30]
[314464917,1708368663973,-500.0,0.00046849,30]
[314464918,1708368663982,-5530.2,0.00046849,30]
[314464919,1708368663994,-500.0,0.00046849,30]
[314464920,1708368664004,-3482.75,0.00046849,30]
[314464921,1708368664013,-1036.78,0.00046849,30]
[314464922,1708368664023,-500.0,0.00046849,30]
[314464923,1708368664036,-528.86252752,0.00046849,30]
[314464924,1708368664045,-1201.09,0.00046849,30]
[314464925,1708368664055,-500.0,0.00046849,30]
[314464926,1708368664065,-500.0,0.00046849,30]
[314464927,1708368664075,-500.0,0.00046849,30]
[314464928,1708368664085,-500.0,0.00046849,30]
[314464929,1708368664095,-500.0,0.00046849,30]
[314464930,1708368664104,-500.0,0.00046849,30]
[314464931,1708368664114,-500.0,0.00046849,30]
[314464932,1708368664123,-500.0,0.00046849,30]
[314464933,1708368664132,-2263.43,0.00046849,30]
[314464934,1708368664141,-3157.88,0.00046849,30]
[314464935,1708368664151,-500.0,0.00046849,30]
[314464936,1708368664160,-500.0,0.00046849,30]
[314464937,1708368664169,-500.0,0.00046849,30]
[314464938,1708368664179,-777.92,0.00046849,30]
[314464939,1708368664188,-2734.92,0.00046849,30]
[314464940,1708368664197,-500.0,0.00046849,30]
[314464941,1708368664206,-505.06,0.00046849,30]
[314464942,1708368664215,-535.5066257,0.00046849,30]
[314464943,1708368664224,-630.40351142,0.00046849,30]
[314464944,1708368664233,-551.4,0.00046849,30]
[314464945,1708368664245,-500.0,0.00046849,30]
[314464946,1708368664255,-500.0,0.00046849,30]
[314464947,1708368664264,-2116.31,0.00046849,30]
[314464948,1708368664274,-1328.42,0.00046849,30]
[314464949,1708368664283,-853.08,0.00046849,30]
[314464950,1708368664292,-1092.76,0.00046849,30]
[314464951,1708368664302,-1138.96,0.00046849,30]
[314464952,1708368664311,-500.0,0.00046849,30]
[314464953,1708368664320,-500.0,0.00046849,30]
[314464954,1708368664330,-500.0,0.00046849,30]
[314464955,1708368664339,-500.0,0.00046849,30]
[314464956,1708368664348,-195.16877576,0.00046849,30]
[314464957,1708368664357,-1906.31,0.00046849,30]
[314464958,1708368664367,-500.0,0.00046849,30]
[314464959,1708368664376,-500.0,0.00046849,30]
[314464960,1708368664385,-500.0,0.00046849,30]
[314464961,1708368664395,-912.3,0.00046849,30]
[314464962,1708368664404,-500.0,0.00046849,30]
[314464963,1708368664415,-2950.25,0.00046849,30]
[314464964,1708368664425,-1276.86,0.00046849,30]
[314464965,1708368664434,-23686.09,0.00046849,30]
[314464966,1708368664443,-716.37,0.00046849,30]
[314464967,1708368664453,-1090.54,0.00046849,30]
[314464968,1708368664462,-500.0,0.00046849,30]
[314464969,1708368664471,-991.27,0.00046849,30]
[314464970,1708368664481,-814.35,0.00046849,30]
[314464971,1708368664492,-500.0,0.00046849,30]
[314464972,1708368664501,-500.0,0.00046849,30]